fUSD/lending_fUSD_20250630
["ID","MTS","AMOUNT","RATE_DAILY","PERIOD"]
[368676805,1751292509868,4000.0,0.00018,30]
[368676806,1751292545215,3000.0,0.00018,30]
[368676807,1751292559578,621.53,0.00012967,2]
[368676810,1751292580734,180.6,0.00013102,2]
[368676816,1751292632148,-300.0,0.00013731,2]
[368676817,1751292632158,-75.94874776,0.00013739,2]
[368676819,1751292632211,-74.05125224,0.00013739,2]
[368676820,1751292632222,-150.0,0.00013756,2]
[368676821,1751292632231,-157.113151,0.00013826,2]
[368676822,1751292632241,-150.0,0.00013858,2]
[368676823,1751292632251,-150.0,0.00013859,2]
[368676824,1751292632260,-150.0,0.00013868,2]
[368676825,1751292632270,-150.0,0.00013888,2]
[368676826,1751292632279,-506.0,0.0001389,2]
[368676827,1751292632289,-150.0,0.00013893,2]
[368676828,1751292632298,-1200.0,0.00013896,2]
[368676829,1751292632308,-575.8259528,0.00013897,2]
[368676830,1751292632318,-375.13108575,0.00013897,2]
[368676831,1751292632327,-1582.24355821,0.00013897,2]
[368676832,1751292632340,-343.03016018,0.00013897,2]
[368676833,1751292632352,-3074.72628161,0.00013897,2]
[368676834,1751292632361,-150.0,0.00013898,2]
[368676835,1751292632371,-150.0,0.000139,2]
[368676836,1751292632381,-150.0,0.00013933,2]
[368676837,1751292632390,-150.0,0.0001395,2]
[368676838,1751292632400,-150.0,0.00013954,2]
[368676839,1751292632410,-375.13108574,0.00013958,2]
[368676840,1751292632419,-500.0,0.00013973,2]
[368676841,1751292632435,-500.0,0.00013973,2]
[368676842,1751292632445,-500.50157012,0.00013973,2]
[368676843,1751292632455,-504.03476298,0.00013973,2]
[368676844,1751292632464,-500.0,0.00013973,2]
[368676845,1751292632474,-500.0,0.00013973,2]
[368676846,1751292632483,-500.0,0.00013973,2]
[368676847,1751292632492,-500.0,0.00013973,2]
[368676848,1751292632501,-500.0,0.00013973,2]
[368676849,1751292632511,-500.0,0.00013973,2]
[368676850,1751292632521,-150.0,0.0001399,2]
[368676851,1751292632531,-890.7534651,0.0001399,2]
[368676852,1751292632540,-2332.6046911,0.0001399,2]
[368676853,1751292632550,-9189.0698081,0.0001399,2]
[368676854,1751292632559,-19585.5868342,0.0001399,2]
[368676855,1751292632568,-207.4,0.00013992,2]
[368676856,1751292632578,-500.0,0.00013992,2]
[368676857,1751292632588,-500.0,0.00013992,2]
[368676858,1751292632598,-500.0,0.00013992,2]
[368676859,1751292632607,-500.0,0.00013992,2]
[368676860,1751292632616,-500.0,0.00013992,2]
[368676862,1751292632625,-500.0,0.00013992,2]
[368676864,1751292632634,-500.0,0.00013992,2]
[368676866,1751292632644,-500.0,0.00013992,2]
[368676868,1751292632653,-500.0,0.00013992,2]
[368676869,1751292632661,-500.0,0.00013992,2]
[368676871,1751292632670,-500.0,0.00013992,2]
[368676873,1751292632679,-500.0,0.00013992,2]
[368676875,1751292632689,-19444.45190105,0.00013992,2]
[368676878,1751292632706,-561.85425795,0.00013992,2]
[368676880,1751292632715,-3628.87679535,0.00013992,2]
[368676885,1751292632749,-77022.02564145,0.00013992,2]
[368676887,1751292632758,-490.0,0.00013996,2]
[368676889,1751292632767,-490.0,0.00013996,2]
[368676891,1751292632776,-626.2060673,0.00013996,2]
[368676893,1751292632786,-490.0,0.00013996,2]
[368676895,1751292632796,-490.0,0.00013996,2]
[368676897,1751292632805,-490.0,0.00013996,2]
[368676899,1751292632814,-500.0,0.00013996,2]
[368676901,1751292632823,-336.07720916,0.00013996,2]
[368676903,1751292632832,-289.66207123,0.00013996,2]
[368676904,1751292632842,-230.36966535,0.00013996,2]
[368676906,1751292632851,-490.0,0.00013996,2]
[368676908,1751292632861,-659.54,0.00013996,2]
[368676910,1751292632871,-490.0,0.00013996,2]
[368676911,1751292632880,-1302.46,0.00013996,2]
[368676912,1751292632890,-1170.31,0.00013996,2]
[368676913,1751292632899,-471.04950083,0.00013996,2]
[368676914,1751292632908,-490.0,0.00013996,2]
[368676915,1751292632919,-2653.769722,0.00013996,2]
[368676916,1751292632928,-157.60867,0.00013996,2]
[368676917,1751292632937,-3468.26,0.00013996,2]
[368676918,1751292632946,-490.0,0.00013996,2]
[368676919,1751292632956,-154.8076,0.00013996,2]
[368676921,1751292632965,-324.690644,0.00013996,2]
[368676923,1751292632974,-490.0,0.00013996,2]
[368676924,1751292632983,-2877.475025,0.00013996,2]
[368676925,1751292632993,-763.6,0.00013996,2]
[368676926,1751292633002,-1267.64,0.00013996,2]
[368676927,1751292633011,-490.0,0.00013996,2]
[368676928,1751292633021,-495.21,0.00013996,2]
[368676929,1751292633031,-1191.99,0.00013996,2]
[368676930,1751292633040,-6845.78,0.00013996,2]
[368676931,1751292633049,-2998.339053,0.00013996,2]
[368676932,1751292633059,-1136.79,0.00013996,2]
[368676933,1751292633069,-907.03,0.00013996,2]
[368676934,1751292633079,-650.41,0.00013996,2]
[368676935,1751292633090,-578.18,0.00013996,2]
[368676936,1751292633100,-1269.77,0.00013996,2]
[368676937,1751292633110,-817.97,0.00013996,2]
[368676938,1751292633120,-490.0,0.00013996,2]
[368676939,1751292633130,-1913.39,0.00013996,2]
[368676940,1751292633140,-747.05,0.00013996,2]
[368676941,1751292633151,-5523.96,0.00013996,2]
[368676942,1751292633162,-490.0,0.00013996,2]
[368676943,1751292633172,-490.0,0.00013996,2]
[368676944,1751292633182,-641.02,0.00013996,2]
[368676945,1751292633192,-1172.49,0.00013996,2]
[368676946,1751292633202,-905.52,0.00013996,2]
[368676947,1751292633212,-1447.51,0.00013996,2]
[368676948,1751292633222,-868.02,0.00013996,2]
[368676949,1751292633232,-490.0,0.00013996,2]
[368676950,1751292633243,-698.31,0.00013996,2]
[368676951,1751292633252,-490.0,0.00013996,2]
[368676952,1751292633263,-490.0,0.00013996,2]
[368676953,1751292633274,-490.0,0.00013996,2]
[368676954,1751292633284,-1533.87,0.00013996,2]
[368676955,1751292633294,-995.98,0.00013996,2]
[368676956,1751292633304,-490.0,0.00013996,2]
[368676957,1751292633314,-2162.47,0.00013996,2]
[368676958,1751292633324,-1768.39,0.00013996,2]
[368676959,1751292633337,-490.0,0.00013996,2]
[368676960,1751292633347,-897.93,0.00013996,2]
[368676961,1751292633358,-614.28,0.00013996,2]
[368676962,1751292633367,-750.37,0.00013996,2]
[368676963,1751292633378,-2226.42,0.00013996,2]
[368676964,1751292633388,-497.71,0.00013996,2]
[368676965,1751292633398,-1075.24,0.00013996,2]
[368676966,1751292633407,-1188.48,0.00013996,2]
[368676967,1751292633417,-930.52,0.00013996,2]
[368676968,1751292633429,-781.82,0.00013996,2]
[368676969,1751292633439,-932.8,0.00013996,2]
[368676970,1751292633449,-796.3,0.00013996,2]
[368676971,1751292633458,-609.72542103,0.00013996,2]
[368676972,1751292633469,-1179.78,0.00013996,2]
[368676973,1751292633479,-554.56,0.00013996,2]
[368676974,1751292633488,-8837.13,0.00013996,2]
[368676975,1751292633502,-776.81,0.00013996,2]
[368676976,1751292633512,-608.02,0.00013996,2]
[368676977,1751292633523,-490.0,0.00013996,2]
[368676978,1751292633533,-490.0,0.00013996,2]
[368676979,1751292633543,-665.81,0.00013996,2]
[368676980,1751292633552,-756.11,0.00013996,2]
[368676981,1751292633562,-490.0,0.00013996,2]
[368676982,1751292633572,-566.26,0.00013996,2]
[368676983,1751292633582,-490.0,0.00013996,2]
[368676984,1751292633596,-1329.56,0.00013996,2]
[368676985,1751292633607,-564.83,0.00013996,2]
[368676986,1751292633619,-4923.74,0.00013996,2]
[368676987,1751292633630,-1722.1,0.00013996,2]
[368676988,1751292633640,-2452.8,0.00013996,2]
[368676989,1751292633650,-914.84,0.00013996,2]
[368676990,1751292633660,-636.52,0.00013996,2]
[368676991,1751292633671,-1035.83,0.00013996,2]
[368676992,1751292633682,-490.0,0.00013996,2]
[368676993,1751292633692,-919.69,0.00013996,2]
[368676994,1751292633702,-2382.11,0.00013996,2]
[368676995,1751292633975,-490.0,0.00013997,2]
[368676996,1751292633985,-1227.58,0.00013997,2]
[368676997,1751292633995,-490.0,0.00013997,2]
[368676998,1751292634004,-195.59036561,0.00013997,2]
[368676999,1751292634014,-1141.01,0.00013997,2]
[368677000,1751292634023,-490.0,0.00013997,2]
[368677001,1751292634032,-490.0,0.00013997,2]
[368677002,1751292634041,-490.0,0.00013997,2]
[368677003,1751292634051,-490.0,0.00013997,2]
[368677004,1751292634060,-2421.93,0.00013997,2]
[368677005,1751292634069,-22.61494404,0.00013997,2]
[368677006,1751292634703,-189.96807315,0.00013995,2]
[368677007,1751292634713,-467.38505596,0.00013997,2]
[368677008,1751292634723,-604.43,0.00013997,2]
[368677009,1751292634732,-289.21206021,0.00013997,2]
[368677010,1751292634743,-490.0,0.00013997,2]
[368677011,1751292634752,-934.37,0.00013997,2]
[368677012,1751292634762,-1322.92881068,0.00013997,2]
[368677013,1751292634792,-67.80118932,0.00013997,2]
[368677014,1751292634801,-214.3221507,0.00013997,2]
[368677015,1751292634813,-275.6778493,0.00013997,2]
[368677016,1751292634822,-490.0,0.00013997,2]
[368677017,1751292634832,-490.0,0.00013997,2]
[368677018,1751292634843,-301.36362065,0.00013997,2]
[368677023,1751292638446,-5352.7634396,0.00013992,2]
[368677025,1751292638567,-23826.00070748,0.00013992,2]
[368677027,1751292638579,-642.81806971,0.00013992,2]
[368677029,1751292638591,-824.68746856,0.00013992,2]
[368677031,1751292638602,-3176.6793252,0.00013992,2]
[368677033,1751292638614,-265.26872079,0.00013992,2]
[368677035,1751292638625,-7833.4039794,0.00013992,2]
[368677193,1751292640315,-1078.46775922,0.00013992,2]
[368677490,1751292643243,-587.76,0.00013699,2]
[368677492,1751292643252,-8483.9735856,0.00013992,2]
[368677494,1751292643264,-12262.31589344,0.00013992,2]
[368677511,1751292643413,-444.3742179,0.00013992,2]
[368677529,1751292643583,-520.39137258,0.00013992,2]
[368677796,1751292646203,-590.3220985,0.00013992,2]
[368677814,1751292646372,-1924.22276947,0.00013992,2]
[368677817,1751292646391,-1304.49995773,0.00013992,2]
[368679837,1751292711079,250.0,0.00013074,2]
[368679892,1751292951362,170.22,0.0001303,2]
[368679893,1751292951547,170.22,0.00013047,2]
[368679894,1751292951789,170.22,0.00013063,2]
[368679896,1751292952006,170.22,0.00013079,2]
[368679897,1751292952241,170.22,0.00013096,2]
[368679905,1751293003351,1000.0,0.00013034,2]
[368679906,1751293016718,23900.0,0.00013044,2]
[368679910,1751293048781,529.0,0.00012468,2]
[368679912,1751293116726,166.57,0.00013044,2]
[368679916,1751293267797,248.42,0.00013035,2]
[368679920,1751293337150,955.92089605,0.00013994,5]
[368679921,1751293518692,156.25325387,0.00012575,2]
[368679922,1751293518794,150.0,0.00012575,2]
[368679923,1751293519533,150.0,0.00012731,2]
[368679924,1751293519662,150.0,0.00012886,2]
[368679925,1751293519704,150.0,0.00013041,2]
[368679926,1751293520151,150.0,0.00012575,2]
[368679927,1751293520193,150.0,0.00012702,2]
[368679928,1751293520228,150.0,0.00012829,2]
[368679929,1751293520613,150.0,0.00012956,2]
[368679930,1751293520672,150.0,0.00013083,2]
[368679931,1751293521499,150.0,0.00012575,2]
[368679932,1751293521973,173.06879157,0.00012575,2]
[368679933,1751293526152,235.59118369,0.00012575,2]
[368679934,1751293526427,150.0,0.00012575,2]
[368679935,1751293526463,150.0,0.00012575,2]
[368679936,1751293530404,150.0,0.00013041,2]
[368679937,1751293531355,256.78342515,0.00012575,2]
[368679938,1751293531452,232.75592861,0.00012575,2]
[368679939,1751293531674,150.0,0.00012575,2]
[368679940,1751293537277,257.85187813,0.00012575,2]
[368679941,1751293537405,150.0,0.00012575,2]
[368679942,1751293537511,150.0,0.00013041,2]
[368679943,1751293537725,203.20841068,0.00012575,2]
[368679944,1751293541615,236.15001008,0.00012575,2]
[368679946,1751293610734,310.76,0.00012869,2]
[368679998,1751293831511,-309.31,0.00013116,2]
[368680001,1751293831522,-250.0,0.0001313,2]
[368680002,1751293831532,-150.0,0.00013196,2]
[368680003,1751293831551,-150.0,0.0001321,2]
[368680004,1751293831563,-150.0,0.00013274,2]
[368680005,1751293831573,-150.0,0.00013274,2]
[368680006,1751293831583,-150.0,0.00013337,2]
[368680007,1751293831593,-150.0,0.00013352,2]
[368680008,1751293831604,-394.17932457,0.0001336,2]
[368680009,1751293831615,-887.86780505,0.00013368,2]
[368680010,1751293831625,-150.0,0.00013465,2]
[368680011,1751293831635,-150.0,0.00013507,2]
[368680012,1751293831645,-150.0,0.00013507,2]
[368680013,1751293831655,-150.0,0.00013507,2]
[368680014,1751293831665,-150.0,0.00013592,2]
[368680015,1751293831675,-150.0,0.00013623,2]
[368680016,1751293831685,-509.0,0.00013637,2]
[368680018,1751293831695,-150.0,0.00013662,2]
[368680020,1751293831705,-494.0,0.00013669,2]
[368680023,1751293831715,-566.21,0.00013699,2]
[368680025,1751293831725,-934.56694021,0.00013699,2]
[368680030,1751293831770,-265.43305979,0.00013699,2]
[368680031,1751293831780,-935.04,0.000137,2]
[368680032,1751293831791,-472.29,0.000137,2]
[368680033,1751293831801,-163.89,0.000137,2]
[368680034,1751293831811,-152.05,0.000137,2]
[368680035,1751293831822,-1.39903336,0.000137,2]
[368680036,1751293831837,-298.60096664,0.000137,2]
[368680037,1751293831847,-58.26473059,0.000137,2]
[368680038,1751293831885,-105.62526941,0.000137,2]
[368680039,1751293831895,-456.36,0.000137,2]
[368680040,1751293831906,-163.89,0.000137,2]
[368680041,1751293831916,-171.26,0.000137,2]
[368680042,1751293831926,-462.82,0.000137,2]
[368680043,1751293831936,-150.0,0.000137,2]
[368680044,1751293831946,-171.26,0.000137,2]
[368680045,1751293831956,-150.76,0.000137,2]
[368680046,1751293831965,-44.49382787,0.000137,2]
[368680056,1751293837366,-754.89617213,0.000137,2]
[368680057,1751293837376,-462.82,0.000137,2]
[368680058,1751293837385,-456.36,0.000137,2]
[368680059,1751293837394,-162.92,0.000137,2]
[368680060,1751293837404,-150.0,0.00013719,2]
[368680061,1751293837413,-157.113151,0.00013719,2]
[368680062,1751293837423,-717.0,0.0001375,2]
[368680063,1751293837432,-311.0,0.0001375,2]
[368680064,1751293837442,-187.96719656,0.0001375,2]
[368680065,1751293837451,-150.0,0.00013817,2]
[368680066,1751293837460,-150.0,0.00013846,2]
[368680067,1751293837470,-370.02493088,0.00013884,2]
[368680068,1751293837479,-575.82595279,0.00013889,2]
[368680069,1751293837489,-160.93505733,0.00013896,2]
[368680070,1751293837498,-207.4044,0.00013897,2]
[368680071,1751293837508,-233.77383138,0.00013898,2]
[368680072,1751293837518,-5191.61358488,0.000139,2]
[368680073,1751293837528,-999.60013268,0.000139,2]
[368680074,1751293837537,-370.02493087,0.00013946,2]
[368680075,1751293837547,-207.4,0.00013964,2]
[368680076,1751293837558,-190.37785605,0.00013973,2]
[368680077,1751293837568,-500.0,0.00013973,2]
[368680078,1751293837578,-320.28128886,0.00013973,2]
[368680079,1751293837589,-167.48584669,0.00013973,2]
[368680080,1751293837598,-223.39798185,0.00013973,2]
[368680081,1751293837607,-201.21217233,0.00013973,2]
[368680082,1751293837619,-277.65916503,0.00013973,2]
[368680083,1751293837628,-246.99820395,0.00013973,2]
[368680084,1751293837638,-215.89028994,0.00013973,2]
[368680085,1751293837648,-279.31709199,0.00013973,2]
[368680086,1751293837658,-500.0,0.00013973,2]
[368680087,1751293837668,-500.0,0.00013973,2]
[368680088,1751293837678,-500.40790437,0.00013973,2]
[368680089,1751293837688,-500.0,0.00013973,2]
[368680090,1751293837698,-500.88288975,0.00013973,2]
[368680091,1751293837708,-519.64748571,0.00013973,2]
[368680092,1751293837717,-500.0,0.00013973,2]
[368680093,1751293837727,-500.0,0.00013973,2]
[368680094,1751293837736,-501.21886395,0.00013973,2]
[368680095,1751293837745,-500.0,0.00013973,2]
[368680096,1751293837755,-555.39650965,0.00013973,2]
[368680097,1751293837766,-500.0,0.00013973,2]
[368680098,1751293837775,-500.0,0.00013973,2]
[368680099,1751293837784,-485.25583763,0.00013973,2]
[368680100,1751293837793,-168205.42918091,0.00013973,2]
[368680101,1751293837802,-331.32,0.00013973,2]
[368680102,1751293837812,-151.0,0.00013987,2]
[368680103,1751293837821,-151.0,0.00013987,2]
[368680104,1751293837834,-151.0,0.00013987,2]
[368680105,1751293837843,-151.0,0.00013987,2]
[368680106,1751293837852,-151.0,0.00013987,2]
[368680107,1751293837862,-151.0,0.00013987,2]
[368680108,1751293837872,-151.0,0.00013987,2]
[368680109,1751293837882,-151.0,0.00013987,2]
[368680110,1751293837892,-151.0,0.00013987,2]
[368680111,1751293837901,-151.0,0.00013987,2]
[368680112,1751293837912,-151.0,0.00013987,2]
[368680113,1751293837921,-151.0,0.00013987,2]
[368680114,1751293837930,-202.43536349,0.00013987,2]
[368680115,1751293837939,-490.0,0.00013988,2]
[368680116,1751293837949,-173.806,0.00013989,2]
[368680118,1751293837958,-1543.034,0.00013989,2]
[368680120,1751293837967,-490.0,0.00013989,2]
[368680121,1751293837977,-490.0,0.00013989,2]
[368680123,1751293837986,-969.42,0.00013989,2]
[368680125,1751293837995,-490.0,0.00013989,2]
[368680128,1751293838006,-490.0,0.00013989,2]
[368680130,1751293838014,-1214.82,0.00013989,2]
[368680132,1751293838024,-861.5,0.00013989,2]
[368680134,1751293838033,-861.5,0.00013989,2]
[368680136,1751293838042,-490.0,0.00013989,2]
[368680138,1751293838052,-490.0,0.00013989,2]
[368680140,1751293838061,-1142.33,0.00013989,2]
[368680142,1751293838071,-869.24,0.00013989,2]
[368680144,1751293838080,-490.0,0.00013989,2]
[368680145,1751293838088,-1216.86,0.00013989,2]
[368680147,1751293838097,-1000.0,0.00013989,2]
[368680149,1751293838106,-882.29,0.00013989,2]
[368680151,1751293838116,-490.0,0.00013989,2]
[368680153,1751293838124,-1123.64,0.00013989,2]
[368680155,1751293838133,-922.24,0.00013989,2]
[368680157,1751293838142,-490.0,0.00013989,2]
[368680159,1751293838152,-710.11,0.00013989,2]
[368680161,1751293838161,-490.0,0.00013989,2]
[368680163,1751293838171,-1469.95,0.00013989,2]
[368680165,1751293838180,-490.0,0.00013989,2]
[368680168,1751293838189,-490.0,0.00013989,2]
[368680170,1751293838199,-612.63,0.00013989,2]
[368680172,1751293838209,-740.1,0.00013989,2]
[368680173,1751293838218,-2191.96,0.00013989,2]
[368680176,1751293838227,-1011.43,0.00013989,2]
[368680177,1751293838236,-1694.71,0.00013989,2]
[368680179,1751293838245,-265.53162945,0.00013989,2]
[368680182,1751293838257,-495.68837055,0.00013989,2]
[368680183,1751293838267,-911.69,0.00013989,2]
[368680185,1751293838276,-1329.12,0.00013989,2]
[368680187,1751293838285,-490.0,0.00013989,2]
[368680189,1751293838293,-490.0,0.00013989,2]
[368680190,1751293838304,-945.47,0.00013989,2]
[368680191,1751293838313,-749.24,0.00013989,2]
[368680192,1751293838322,-507.99,0.00013989,2]
[368680193,1751293838331,-1205.49,0.00013989,2]
[368680194,1751293838340,-574.89,0.00013989,2]
[368680195,1751293838349,-945.36,0.00013989,2]
[368680196,1751293838357,-787.73,0.00013989,2]
[368680197,1751293838367,-490.0,0.00013989,2]
[368680198,1751293838375,-584.23,0.00013989,2]
[368680199,1751293838385,-1196.84,0.00013989,2]
[368680200,1751293838394,-633.91,0.00013989,2]
[368680201,1751293838402,-809.29,0.00013989,2]
[368680202,1751293838411,-801.77,0.00013989,2]
[368680203,1751293838421,-490.0,0.00013989,2]
[368680204,1751293838430,-315.29162945,0.00013989,2]
[368680345,1751293839823,-6885.9778962,0.000139,2]
[368680480,1751293841116,-1073.85,0.000139,2]
[368680482,1751293841128,-771.63517942,0.000139,2]
[368680655,1751293842802,-18555.35203519,0.000139,2]
[368680657,1751293842811,-43.16868034,0.00013988,2]
[368680943,1751293845485,-446.83131966,0.00013988,2]
[368680946,1751293845495,-490.0,0.00013988,2]
[368680949,1751293845505,-1037.96367979,0.00013989,2]
[368680958,1751293845579,-1357.40899305,0.00013989,2]
[368680975,1751293845730,-490.0,0.00013988,2]
[368680977,1751293845740,-1008.421912,0.00013989,2]
[368681105,1751293847499,984.21,0.00013082,2]
[368681106,1751293848094,1990.0,0.00027397,120]
[368681250,1751293892632,150.0,0.00026681,120]
[368681251,1751293903038,300.0,0.000134,4]
[368681252,1751293905200,600.0,0.000135,4]
[368681253,1751293908828,377.06,0.00013005,2]
[368681254,1751293910310,900.0,0.000136,4]
[368681255,1751293912472,1200.0,0.000137,5]
[368681256,1751293914847,663.71929114,0.000138,5]
[368681257,1751293914874,836.28070886,0.000138,5]
[368681258,1751293916995,300.0,0.000139,5]
[368681259,1751293926781,184.2,0.00012972,2]
[368681260,1751293968750,5186.0985608,0.0002739,120]
[368681261,1751294013684,470.59,0.00012948,2]
[368681262,1751294013807,470.59,0.00012951,2]
[368681263,1751294014111,470.59,0.00012955,2]
[368681264,1751294014513,470.59,0.00012958,2]
[368681265,1751294014800,470.59,0.00012962,2]
[368681266,1751294016029,470.59,0.00012965,2]
[368681267,1751294016116,470.59,0.00012968,2]
[368681268,1751294019364,470.59,0.00012972,2]
[368681269,1751294019881,470.59,0.00012975,2]
[368681270,1751294020138,470.59,0.00012979,2]
[368681271,1751294020654,470.59,0.00012982,2]
[368681272,1751294020839,470.59,0.00012985,2]
[368681273,1751294021012,470.59,0.00012989,2]
[368681274,1751294021107,470.59,0.00012992,2]
[368681275,1751294021247,470.59,0.00012996,2]
[368681276,1751294021647,470.59,0.00012999,2]
[368681277,1751294021845,470.59,0.00013002,2]
[368681278,1751294022049,470.59,0.00013006,2]
[368681279,1751294022249,470.59,0.00013009,2]
[368681280,1751294022446,470.59,0.00013013,2]
[368681281,1751294037538,5895.8,0.00012926,2]
[368681285,1751294057474,1076.8054471,0.00013989,5]
[368681288,1751294066457,551.86,0.0001293,2]
[368681289,1751294088056,2649.32,0.00012934,2]
[368681290,1751294104472,50000.0,0.00027397,120]
[368681291,1751294178344,1000.0,0.00012921,2]
[368681292,1751294330395,166.57,0.00012913,2]
[368681294,1751294460527,503.0,0.00012637,2]
[368681295,1751294499900,150.0,0.00012609,2]
[368681296,1751294500040,150.0,0.00012467,2]
[368681298,1751294715782,150.0,0.00012575,2]
[368681299,1751294718199,600.0,0.00027397,120]
[368681300,1751294741871,359.72,0.00012922,2]
[368681303,1751294787357,-166.78,0.00013545,2]
[368681304,1751294787406,-3339.19157241,0.00013599,2]
[368681305,1751294787460,-3339.19157241,0.00013624,2]
[368681306,1751294787512,-1200.0,0.00013647,2]
[368681307,1751294787560,-300.0,0.00013647,2]
[368681308,1751294787838,-3339.19157241,0.00013648,2]
[368681309,1751294787893,-271.28,0.00013699,2]
[368681310,1751294787950,-545.73,0.00013699,2]
[368681311,1751294788003,-150.0,0.00013748,2]
[368681312,1751294788054,-150.0,0.00013762,2]
[368681313,1751294788102,-1063.87405485,0.0001385,2]
[368681314,1751294788259,-8959.84874548,0.0001385,2]
[368681315,1751294788307,-207.4,0.00013852,2]
[368681316,1751294788357,-296.01994475,0.00013888,2]
[368681317,1751294788407,-403.73174719,0.00013888,2]
[368681318,1751294788609,-265.99912516,0.00013888,2]
[368681319,1751294788660,-296.01994469,0.00013889,2]
[368681320,1751294788709,-669.73087228,0.00013889,2]
[368681321,1751294788762,-296.01994469,0.00013891,2]
[368681322,1751294788815,-669.73087228,0.00013891,2]
[368681323,1751294788869,-500.0,0.00013892,2]
[368681324,1751294788924,-252.2847621,0.00013892,2]
[368681325,1751294788977,-296.01994469,0.00013892,2]
[368681326,1751294789035,-669.73087228,0.00013892,2]
[368681327,1751294789085,-296.01994469,0.00013893,2]
[368681328,1751294789134,-669.73087228,0.00013893,2]
[368681329,1751294789185,-296.01994469,0.00013895,2]
[368681330,1751294789235,-669.73087228,0.00013895,2]
[368681331,1751294789287,-296.01994469,0.00013896,2]
[368681332,1751294789335,-669.73087228,0.00013896,2]
[368681333,1751294789383,-200.37756978,0.00013897,2]
[368681334,1751294789431,-296.01994469,0.00013897,2]
[368681335,1751294789479,-669.73087228,0.00013897,2]
[368681336,1751294789527,-296.01994469,0.00013899,2]
[368681337,1751294789577,-669.73087228,0.00013899,2]
[368681338,1751294789627,-296.01994469,0.000139,2]
[368681339,1751294789680,-290.3245442,0.000139,2]
[368681340,1751294789731,-268.24416434,0.000139,2]
[368681341,1751294790355,-401.48670794,0.000139,2]
[368681342,1751294790404,-3461.07572326,0.000139,2]
[368681343,1751294790457,-666.40008844,0.000139,2]
[368681344,1751294790506,-150.0,0.00013904,2]
[368681345,1751294790553,-500.0,0.00013973,2]
[368681346,1751294790600,-610.87933509,0.00013973,2]
[368681347,1751294790656,-245.83590817,0.00013973,2]
[368681348,1751294790706,-150.0,0.00013973,2]
[368681349,1751294790755,-174.08202565,0.00013973,2]
[368681350,1751294790806,-504.06430225,0.00013973,2]
[368681351,1751294790858,-500.0,0.00013973,2]
[368681352,1751294790909,-500.0,0.00013973,2]
[368681353,1751294791921,-8348.0,0.00013973,2]
[368681354,1751294791972,-501.22824006,0.00013987,2]
[368681355,1751294792024,-354.64994989,0.00013987,2]
[368681356,1751294792075,-490.0,0.00013987,2]
[368681357,1751294792125,-122.2436201,0.00013987,2]
[368681358,1751294792293,-367.7563799,0.00013987,2]
[368681359,1751294792340,-490.0,0.00013987,2]
[368681360,1751294792387,-412.9751561,0.00013987,2]
[368681361,1751294792435,-883.81,0.00013987,2]
[368681362,1751294792485,-490.0,0.00013987,2]
[368681363,1751294792531,-490.0,0.00013987,2]